fUST/lending_fUST_20240610
["ID","MTS","AMOUNT","RATE_DAILY","PERIOD"]
[328954211,1718027466516,-500.0,0.00020821,2]
[328954212,1718027466526,-500.0,0.00020821,2]
[328954213,1718027466535,-2014.2,0.00020821,2]
[328954214,1718027466545,-653.4,0.00020821,2]
[328954215,1718027466555,-3732.58,0.00020821,2]
[328954216,1718027466565,-420.0,0.00020891,2]
[328954217,1718027466575,-160.194328,0.00020916,2]
[328954218,1718027466586,-500.0,0.00020983,2]
[328954219,1718027466596,-6064.86225794,0.00021,2]
[328954220,1718027466607,-23542.31054322,0.00021,2]
[328954221,1718027466617,-10074.80818339,0.00021,2]
[328954222,1718027466626,-160.0,0.00021,2]
[328954223,1718027466636,-500.0,0.00021095,2]
[328954224,1718027466646,-500.0,0.00021095,2]
[328954225,1718027466655,-500.0,0.00021095,2]
[328954226,1718027466665,-500.0,0.00021095,2]
[328954227,1718027466675,-852.44,0.00021095,2]
[328954228,1718027466685,-500.0,0.00021095,2]
[328954229,1718027466696,-816.0,0.00021095,2]
[328954230,1718027466706,-492.03,0.00021095,2]
[328954231,1718027466716,-500.0,0.00021095,2]
[328954232,1718027466726,-500.0,0.00021095,2]
[328954233,1718027466736,-500.0,0.00021095,2]
[328954234,1718027466747,-500.0,0.00021095,2]
[328954235,1718027466757,-697.87,0.00021095,2]
[328954236,1718027466767,-500.0,0.00021095,2]
[328954237,1718027466777,-500.0,0.00021095,2]
[328954238,1718027466787,-749.15,0.00021095,2]
[328954239,1718027466798,-500.0,0.00021095,2]
[328954240,1718027466808,-574.83,0.00021095,2]
[328954241,1718027466818,-760.86,0.00021095,2]
[328954242,1718027466829,-500.0,0.00021095,2]
[328954243,1718027466843,-775.87,0.00021095,2]
[328954244,1718027466853,-793.41,0.00021095,2]
[328954245,1718027466864,-500.0,0.00021095,2]
[328954246,1718027466874,-1146.57,0.00021095,2]
[328954247,1718027466886,-500.0,0.00021095,2]
[328954248,1718027466898,-500.0,0.00021095,2]
[328954249,1718027466909,-500.0,0.00021095,2]
[328954250,1718027466919,-500.0,0.00021095,2]
[328954251,1718027466929,-500.0,0.00021095,2]
[328954252,1718027466940,-645.4,0.00021095,2]
[328954253,1718027466951,-4240.31,0.00021095,2]
[328954254,1718027466962,-638.56,0.00021095,2]
[328954255,1718027466972,-500.0,0.00021095,2]
[328954256,1718027466982,-500.0,0.00021095,2]
[328954257,1718027466992,-2476.18,0.00021095,2]
[328954258,1718027467003,-1036.24,0.00021095,2]
[328954259,1718027467014,-500.0,0.00021095,2]
[328954260,1718027467024,-1207.66,0.00021095,2]
[328954261,1718027467034,-500.0,0.00021095,2]
[328954262,1718027467044,-500.0,0.00021095,2]
[328954263,1718027467055,-500.0,0.00021095,2]
[328954264,1718027467067,-607.44,0.00021095,2]
[328954265,1718027467084,-656.09,0.00021095,2]
[328954266,1718027467094,-1288.07,0.00021095,2]
[328954267,1718027467103,-500.0,0.00021095,2]
[328954268,1718027467114,-500.0,0.00021095,2]
[328954269,1718027467124,-803.58,0.00021095,2]
[328954270,1718027467134,-500.0,0.00021095,2]
[328954271,1718027467145,-500.0,0.00021095,2]
[328954272,1718027467158,-809.62,0.00021095,2]
[328954273,1718027467169,-1839.43,0.00021095,2]
[328954274,1718027467179,-663.34,0.00021095,2]
[328954275,1718027467189,-1812.95,0.00021095,2]
[328954276,1718027467199,-546.88,0.00021095,2]
[328954277,1718027467210,-1110.76,0.00021095,2]
[328954278,1718027467221,-500.0,0.00021095,2]
[328954279,1718027467231,-2940.84,0.00021095,2]
[328954280,1718027467241,-4098.29,0.00021095,2]
[328954281,1718027467252,-2176.93,0.00021095,2]
[328954282,1718027467263,-500.0,0.00021095,2]
[328954283,1718027467273,-500.0,0.00021095,2]
[328954284,1718027467284,-2014.2,0.00021095,2]
[328954285,1718027467294,-653.4,0.00021095,2]
[328954286,1718027467304,-3732.58,0.00021095,2]
[328954287,1718027467315,-500.0,0.00021257,2]
[328954288,1718027467325,-200.0,0.00021346,5]
[328954289,1718027467337,-500.0,0.00021369,2]
[328954290,1718027467347,-500.0,0.00021369,2]
[328954291,1718027467357,-500.0,0.00021369,2]
[328954292,1718027467367,-500.0,0.00021369,2]
[328954293,1718027467377,-852.44,0.00021369,2]
[328954294,1718027467387,-500.0,0.00021369,2]
[328954295,1718027467397,-816.0,0.00021369,2]
[328954296,1718027467408,-500.0,0.00021369,2]
[328954297,1718027467419,-500.0,0.00021369,2]
[328954298,1718027467429,-500.0,0.00021369,2]
[328954299,1718027467440,-500.0,0.00021369,2]
[328954300,1718027467450,-697.87,0.00021369,2]
[328954301,1718027467460,-437.09,0.00021369,2]
[328954302,1718027467470,-500.0,0.00021369,2]
[328954303,1718027467480,-749.15,0.00021369,2]
[328954304,1718027467491,-500.0,0.00021369,2]
[328954305,1718027467501,-574.83,0.00021369,2]
[328954306,1718027467511,-760.86,0.00021369,2]
[328954307,1718027467520,-500.0,0.00021369,2]
[328954308,1718027467531,-775.87,0.00021369,2]
[328954309,1718027467541,-793.41,0.00021369,2]
[328954310,1718027467551,-500.0,0.00021369,2]
[328954311,1718027467561,-1146.57,0.00021369,2]
[328954312,1718027467571,-500.0,0.00021369,2]
[328954313,1718027467582,-500.0,0.00021369,2]
[328954314,1718027467592,-500.0,0.00021369,2]
[328954315,1718027467602,-500.0,0.00021369,2]
[328954316,1718027467611,-500.0,0.00021369,2]
[328954317,1718027467621,-645.4,0.00021369,2]
[328954318,1718027467631,-4240.31,0.00021369,2]
[328954319,1718027467641,-638.56,0.00021369,2]
[328954320,1718027467650,-500.0,0.00021369,2]
[328954321,1718027467660,-2476.18,0.00021369,2]
[328954322,1718027467669,-500.0,0.00021369,2]
[328954323,1718027467679,-1036.24,0.00021369,2]
[328954324,1718027467689,-500.0,0.00021369,2]
[328954325,1718027467699,-1207.66,0.00021369,2]
[328954326,1718027467708,-500.0,0.00021369,2]
[328954327,1718027467717,-500.0,0.00021369,2]
[328954328,1718027467727,-500.0,0.00021369,2]
[328954329,1718027467737,-607.44,0.00021369,2]
[328954330,1718027467747,-656.09,0.00021369,2]
[328954331,1718027467756,-500.0,0.00021369,2]
[328954332,1718027467766,-1288.07,0.00021369,2]
[328954333,1718027467775,-192.44172263,0.00021369,2]
[328954334,1718027467785,-803.58,0.00021369,2]
[328954335,1718027467794,-500.0,0.00021369,2]
[328954336,1718027467804,-500.0,0.00021369,2]
[328954337,1718027467814,-809.62,0.00021369,2]
[328954338,1718027467823,-1839.43,0.00021369,2]
[328954339,1718027467835,-663.34,0.00021369,2]
[328954340,1718027467845,-1812.95,0.00021369,2]
[328954341,1718027467855,-546.88,0.00021369,2]
[328954342,1718027467865,-1110.76,0.00021369,2]
[328954343,1718027467876,-500.0,0.00021369,2]
[328954344,1718027467886,-2940.84,0.00021369,2]
[328954345,1718027467896,-4098.29,0.00021369,2]
[328954346,1718027467907,-2176.93,0.00021369,2]
[328954347,1718027467917,-500.0,0.00021369,2]
[328954348,1718027467927,-500.0,0.00021369,2]
[328954349,1718027467937,-2014.2,0.00021369,2]
[328954350,1718027468048,-653.4,0.00021369,2]
[328954351,1718027468060,-3732.58,0.00021369,2]
[328954352,1718027468071,-3000.0,0.000215,2]
[328954353,1718027468087,-3000.0,0.0002151,2]
[328954354,1718027468097,-3000.0,0.0002152,2]
[328954355,1718027468107,-3000.0,0.0002153,2]
[328954356,1718027468118,-500.0,0.00021531,2]
[328954357,1718027468128,-3000.0,0.0002154,2]
[328954358,1718027468138,-320.0,0.00021548,2]
[328954359,1718027468150,-4433.955906,0.0002155,2]
[328954360,1718027468161,-500.0,0.00021643,2]
[328954361,1718027468172,-500.0,0.00021643,2]
[328954362,1718027468182,-500.0,0.00021643,2]
[328954363,1718027468191,-500.0,0.00021643,2]
[328954364,1718027468202,-852.44,0.00021643,2]
[328954365,1718027468212,-500.0,0.00021643,2]
[328954366,1718027468222,-816.0,0.00021643,2]
[328954367,1718027468232,-461.4479769,0.00021643,2]
[328954368,1718027468242,-599.67744872,0.00021643,2]
[328954369,1718027468253,-500.0,0.00021643,2]
[328954370,1718027468263,-500.0,0.00021643,2]
[328954371,1718027468274,-697.87,0.00021643,2]
[328954372,1718027468284,-500.0,0.00021643,2]
[328954373,1718027468294,-749.15,0.00021643,2]
[328954374,1718027468304,-500.0,0.00021643,2]
[328954375,1718027468314,-574.83,0.00021643,2]
[328954376,1718027468324,-760.86,0.00021643,2]
[328954377,1718027468336,-500.0,0.00021643,2]
[328954378,1718027468345,-775.87,0.00021643,2]
[328954379,1718027468355,-793.41,0.00021643,2]
[328954380,1718027468365,-219.92,0.00021643,2]
[328954381,1718027468375,-1146.57,0.00021643,2]
[328954382,1718027468385,-597.64871672,0.00021643,2]
[328954383,1718027468395,-500.0,0.00021643,2]
[328954384,1718027468405,-500.0,0.00021643,2]
[328954385,1718027468415,-500.0,0.00021643,2]
[328954386,1718027468425,-500.0,0.00021643,2]
[328954387,1718027468436,-645.4,0.00021643,2]
[328954388,1718027468445,-4240.31,0.00021643,2]
[328954389,1718027468456,-638.56,0.00021643,2]
[328954390,1718027468466,-500.0,0.00021643,2]
[328954391,1718027468476,-2476.18,0.00021643,2]
[328954392,1718027468487,-500.0,0.00021643,2]
[328954393,1718027468497,-1036.24,0.00021643,2]
[328954394,1718027468509,-500.0,0.00021643,2]
[328954395,1718027468519,-1207.66,0.00021643,2]
[328954396,1718027468530,-500.0,0.00021643,2]
[328954397,1718027468540,-500.0,0.00021643,2]
[328954398,1718027468550,-500.0,0.00021643,2]
[328954399,1718027468560,-607.44,0.00021643,2]
[328954400,1718027468571,-656.09,0.00021643,2]
[328954401,1718027468583,-500.0,0.00021643,2]
[328954402,1718027468593,-1288.07,0.00021643,2]
[328954403,1718027468603,-803.58,0.00021643,2]
[328954404,1718027468612,-500.0,0.00021643,2]
[328954405,1718027468623,-500.0,0.00021643,2]
[328954406,1718027468633,-809.62,0.00021643,2]
[328954407,1718027468644,-1839.43,0.00021643,2]
[328954408,1718027468654,-663.34,0.00021643,2]
[328954409,1718027468664,-1812.95,0.00021643,2]
[328954410,1718027468674,-546.88,0.00021643,2]
[328954411,1718027468684,-1110.76,0.00021643,2]
[328954412,1718027468695,-500.0,0.00021643,2]
[328954413,1718027468705,-2940.84,0.00021643,2]
[328954414,1718027468715,-4098.29,0.00021643,2]
[328954415,1718027468725,-2176.93,0.00021643,2]
[328954416,1718027468734,-500.0,0.00021643,2]
[328954417,1718027468745,-500.0,0.00021643,2]
[328954418,1718027468755,-2014.2,0.00021643,2]
[328954419,1718027468765,-653.4,0.00021643,2]
[328954420,1718027468776,-3732.58,0.00021643,2]
[328954421,1718027468786,-500.0,0.00021805,2]
[328954422,1718027468796,-500.0,0.00021917,2]
[328954423,1718027468806,-500.0,0.00021917,2]
[328954424,1718027468816,-500.0,0.00021917,2]
[328954425,1718027468825,-500.0,0.00021917,2]
[328954426,1718027468838,-852.44,0.00021917,2]
[328954427,1718027468848,-500.0,0.00021917,2]
[328954428,1718027468858,-816.0,0.00021917,2]
[328954429,1718027468868,-500.0,0.00021917,2]
[328954430,1718027468880,-153.97,0.00021917,2]
[328954431,1718027468891,-697.87,0.00021917,2]
[328954432,1718027468901,-500.0,0.00021917,2]
[328954433,1718027468911,-749.15,0.00021917,2]
[328954434,1718027468920,-500.0,0.00021917,2]
[328954435,1718027468931,-574.83,0.00021917,2]
[328954436,1718027468941,-760.86,0.00021917,2]
[328954437,1718027468951,-500.0,0.00021917,2]
[328954438,1718027468961,-775.87,0.00021917,2]
[328954439,1718027468971,-793.41,0.00021917,2]
[328954440,1718027468981,-1146.57,0.00021917,2]
[328954441,1718027468991,-500.0,0.00021917,2]
[328954442,1718027469002,-500.0,0.00021917,2]
[328954443,1718027469013,-500.0,0.00021917,2]
[328954444,1718027469023,-500.0,0.00021917,2]
[328954445,1718027469034,-645.4,0.00021917,2]
[328954446,1718027469045,-4240.31,0.00021917,2]
[328954447,1718027469055,-638.56,0.00021917,2]
[328954448,1718027469066,-315.29108027,0.00021917,2]
[328954449,1718027469080,-2476.18,0.00021917,2]
[328954450,1718027469094,-500.0,0.00021917,2]
[328954451,1718027469104,-1036.24,0.00021917,2]
[328954452,1718027469115,-500.0,0.00021917,2]
[328954453,1718027469125,-1207.66,0.00021917,2]
[328954454,1718027469136,-347.21998668,0.00021917,2]
[328954455,1718027469147,-500.0,0.00021917,2]
[328954456,1718027469159,-500.0,0.00021917,2]
[328954457,1718027469170,-607.44,0.00021917,2]
[328954458,1718027469182,-656.09,0.00021917,2]
[328954459,1718027469193,-500.0,0.00021917,2]
[328954460,1718027469203,-1288.07,0.00021917,2]
[328954461,1718027469214,-803.58,0.00021917,2]
[328954462,1718027469224,-500.0,0.00021917,2]
[328954463,1718027469234,-500.0,0.00021917,2]
[328954464,1718027469244,-809.62,0.00021917,2]
[328954465,1718027469255,-1839.43,0.00021917,2]
[328954466,1718027469265,-663.34,0.00021917,2]
[328954467,1718027469275,-1812.95,0.00021917,2]
[328954468,1718027469286,-546.88,0.00021917,2]
[328954469,1718027469297,-1110.76,0.00021917,2]
[328954470,1718027469307,-500.0,0.00021917,2]
[328954471,1718027469317,-2940.84,0.00021917,2]
[328954472,1718027469327,-4098.29,0.00021917,2]
[328954473,1718027469339,-2176.93,0.00021917,2]
[328954474,1718027469349,-422.89,0.00021917,2]
[328954475,1718027469359,-555.56331836,0.00021917,2]
[328954476,1718027469370,-2014.2,0.00021917,2]
[328954477,1718027469380,-653.4,0.00021917,2]
[328954478,1718027469391,-3732.58,0.00021917,2]
[328954479,1718027469402,-166.666666,0.00021918,2]
[328954480,1718027469412,-245.52652369,0.00022,2]
[328954481,1718027469422,-6455.36545821,0.00022,2]
[328954482,1718027469432,-186281.61134871,0.00022,2]
[328954483,1718027469443,-200.0,0.0002204,5]
[328954484,1718027469454,-500.0,0.00022079,2]
[328954485,1718027469468,-183.69873197,0.00022096,2]
[328954486,1718027469479,-621.15511875,0.00022137,2]
[328954487,1718027469489,-500.0,0.00022191,2]
[328954488,1718027469499,-500.0,0.00022191,2]
[328954489,1718027469509,-202.21702663,0.00022191,2]
[328954490,1718027469519,-474.54921613,0.00022191,2]
[328954491,1718027469529,-852.44,0.00022191,2]
[328954492,1718027469540,-500.0,0.00022191,2]
[328954493,1718027469551,-816.0,0.00022191,2]
[328954494,1718027469561,-500.0,0.00022191,2]
[328954495,1718027469571,-697.87,0.00022191,2]
[328954496,1718027469581,-500.0,0.00022191,2]
[328954497,1718027469593,-749.15,0.00022191,2]
[328954498,1718027469604,-500.0,0.00022191,2]
[328954499,1718027469614,-574.83,0.00022191,2]
[328954500,1718027469624,-760.86,0.00022191,2]
[328954501,1718027469634,-500.0,0.00022191,2]
[328954502,1718027469644,-775.87,0.00022191,2]
[328954503,1718027469654,-793.41,0.00022191,2]
[328954504,1718027469665,-1146.57,0.00022191,2]
[328954505,1718027469675,-500.0,0.00022191,2]
[328954506,1718027469686,-500.0,0.00022191,2]
[328954507,1718027469696,-500.0,0.00022191,2]
[328954508,1718027469707,-500.0,0.00022191,2]
[328954509,1718027469717,-645.4,0.00022191,2]
[328954510,1718027469728,-638.56,0.00022191,2]
[328954511,1718027469739,-4240.31,0.00022191,2]
[328954512,1718027469749,-2476.18,0.00022191,2]
[328954513,1718027469759,-500.0,0.00022191,2]
[328954514,1718027469770,-1036.24,0.00022191,2]
[328954515,1718027469780,-226.73,0.00022191,2]
[328954516,1718027469790,-1207.66,0.00022191,2]
[328954517,1718027469800,-500.0,0.00022191,2]
[328954518,1718027469811,-500.0,0.00022191,2]
[328954519,1718027469821,-607.44,0.00022191,2]
[328954520,1718027469834,-656.09,0.00022191,2]
[328954521,1718027469844,-500.0,0.00022191,2]
[328954522,1718027469854,-1288.07,0.00022191,2]
[328954523,1718027469864,-803.58,0.00022191,2]
[328954524,1718027469874,-248.98580345,0.00022191,2]
[328954525,1718027469885,-500.0,0.00022191,2]
[328954526,1718027469895,-809.62,0.00022191,2]
[328954527,1718027469905,-1839.43,0.00022191,2]
[328954528,1718027469915,-663.34,0.00022191,2]
[328954529,1718027469925,-1812.95,0.00022191,2]
[328954530,1718027469935,-546.88,0.00022191,2]
[328954531,1718027469945,-1110.76,0.00022191,2]
[328954532,1718027469955,-500.0,0.00022191,2]
[328954533,1718027469965,-2940.84,0.00022191,2]
[328954534,1718027469976,-4098.29,0.00022191,2]
[328954535,1718027469987,-2176.93,0.00022191,2]
[328954536,1718027469997,-2014.2,0.00022191,2]
[328954537,1718027470008,-653.4,0.00022191,2]
[328954538,1718027470018,-3732.58,0.00022191,2]
[328954539,1718027470029,-1070.45763977,0.000223,2]
[328954540,1718027470039,-1045.30962503,0.0002233,15]
[328954541,1718027470049,-82390.05990996,0.0002233,3]
[328954542,1718027470059,-598.21922168,0.00022353,2]
[328954543,1718027470070,-166.666666,0.00022431,2]
[328954544,1718027470083,-302.44,0.00022465,2]
[328954545,1718027470094,-500.0,0.00022465,2]
[328954546,1718027470104,-852.44,0.00022465,2]
[328954547,1718027470115,-426.19,0.00022465,2]
[328954548,1718027470125,-816.0,0.00022465,2]
[328954549,1718027470136,-500.0,0.00022465,2]
[328954550,1718027470146,-697.87,0.00022465,2]
[328954551,1718027470159,-500.0,0.00022465,2]
[328954552,1718027470169,-749.15,0.00022465,2]
[328954553,1718027470180,-500.0,0.00022465,2]
[328954554,1718027470190,-574.83,0.00022465,2]
[328954555,1718027470200,-760.86,0.00022465,2]
[328954556,1718027470211,-500.0,0.00022465,2]
[328954557,1718027470221,-775.87,0.00022465,2]
[328954558,1718027470232,-793.41,0.00022465,2]
[328954559,1718027470242,-1146.57,0.00022465,2]
[328954560,1718027470253,-590.04,0.00022465,2]
[328954561,1718027470262,-500.0,0.00022465,2]
[328954562,1718027470272,-500.0,0.00022465,2]
[328954563,1718027470282,-500.0,0.00022465,2]
[328954564,1718027470294,-645.4,0.00022465,2]
[328954565,1718027470305,-4240.31,0.00022465,2]
[328954566,1718027470315,-638.56,0.00022465,2]
[328954567,1718027470325,-2476.18,0.00022465,2]
[328954568,1718027470339,-500.0,0.00022465,2]
[328954569,1718027470349,-1036.24,0.00022465,2]
[328954570,1718027470359,-1207.66,0.00022465,2]
[328954571,1718027470370,-500.0,0.00022465,2]
[328954572,1718027470380,-500.0,0.00022465,2]
[328954573,1718027470390,-607.44,0.00022465,2]
[328954574,1718027470501,-656.09,0.00022465,2]
[328954575,1718027470513,-500.0,0.00022465,2]
[328954576,1718027470524,-1288.07,0.00022465,2]
[328954577,1718027470535,-803.58,0.00022465,2]
[328954578,1718027470545,-500.0,0.00022465,2]
[328954579,1718027470556,-809.62,0.00022465,2]
[328954580,1718027470566,-1839.43,0.00022465,2]
[328954581,1718027470577,-663.34,0.00022465,2]
[328954582,1718027470591,-1812.95,0.00022465,2]
[328954583,1718027470603,-546.88,0.00022465,2]
[328954584,1718027470613,-1110.76,0.00022465,2]
[328954585,1718027470624,-500.0,0.00022465,2]
[328954586,1718027470635,-2940.84,0.00022465,2]
[328954587,1718027470646,-4098.29,0.00022465,2]
[328954588,1718027470656,-2176.93,0.00022465,2]
[328954589,1718027470667,-2014.2,0.00022465,2]
[328954590,1718027470677,-653.4,0.00022465,2]
[328954591,1718027470688,-3732.58,0.00022465,2]
[328954592,1718027470698,-587.0,0.00022565,2]
[328954593,1718027470708,-153.0,0.00022678,2]
[328954594,1718027470718,-153.0,0.00022678,2]
[328954595,1718027470729,-153.0,0.00022678,2]
[328954596,1718027470739,-153.0,0.00022678,2]
[328954597,1718027470749,-153.0,0.00022678,2]
[328954598,1718027470759,-153.0,0.00022678,2]
[328954599,1718027470770,-153.0,0.00022678,2]
[328954600,1718027470780,-153.0,0.00022678,2]
[328954601,1718027470790,-153.0,0.00022678,2]
[328954602,1718027470801,-153.0,0.00022678,2]
[328954603,1718027470811,-153.0,0.00022678,2]
[328954604,1718027470821,-153.0,0.00022681,2]
[328954605,1718027470831,-153.0,0.00022681,2]
[328954606,1718027470842,-153.0,0.00022681,2]
[328954607,1718027470852,-153.0,0.00022681,2]
[328954608,1718027470862,-153.0,0.00022681,2]
[328954609,1718027470874,-153.0,0.00022681,2]
[328954610,1718027470884,-153.0,0.00022681,2]
[328954611,1718027470895,-153.0,0.00022681,2]
[328954612,1718027470904,-153.0,0.00022681,2]
[328954613,1718027470914,-153.0,0.00022681,2]
[328954614,1718027470924,-153.0,0.00022681,2]
[328954615,1718027470933,-153.0,0.00022681,2]
[328954616,1718027470943,-153.0,0.00022681,2]
[328954617,1718027470953,-153.0,0.00022681,2]
[328954618,1718027470963,-153.0,0.00022681,2]
[328954619,1718027470973,-153.0,0.00022681,2]
[328954620,1718027470983,-153.0,0.00022684,2]
[328954621,1718027470993,-153.0,0.00022684,2]
[328954622,1718027471003,-153.0,0.00022684,2]
[328954623,1718027471013,-200.0,0.00022735,5]
[328954624,1718027471023,-500.0,0.00022739,2]
[328954625,1718027471033,-852.44,0.00022739,2]
[328954626,1718027471043,-816.0,0.00022739,2]
[328954627,1718027471054,-162.30485222,0.00022739,2]
[328954628,1718027471064,-697.87,0.00022739,2]
[328954629,1718027471079,-500.0,0.00022739,2]
[328954630,1718027471091,-749.15,0.00022739,2]
[328954631,1718027471100,-500.0,0.00022739,2]
[328954632,1718027471110,-574.83,0.00022739,2]
[328954633,1718027471123,-760.86,0.00022739,2]
[328954634,1718027471133,-500.0,0.00022739,2]
[328954635,1718027471144,-775.87,0.00022739,2]
[328954636,1718027471155,-793.41,0.00022739,2]
[328954637,1718027471165,-1146.57,0.00022739,2]
[328954638,1718027471176,-500.0,0.00022739,2]
[328954639,1718027471186,-277.01823412,0.00022739,2]
[328954640,1718027471196,-500.0,0.00022739,2]
[328954641,1718027471206,-645.4,0.00022739,2]
[328954642,1718027471217,-638.56,0.00022739,2]
[328954643,1718027471227,-4240.31,0.00022739,2]
[328954644,1718027471237,-2476.18,0.00022739,2]
[328954645,1718027471247,-500.0,0.00022739,2]
[328954646,1718027471257,-1036.24,0.00022739,2]
[328954647,1718027471266,-1207.66,0.00022739,2]
[328954648,1718027471276,-500.0,0.00022739,2]
[328954649,1718027471286,-500.0,0.00022739,2]
[328954650,1718027471295,-607.44,0.00022739,2]
[328954651,1718027471307,-656.09,0.00022739,2]
[328954652,1718027471318,-469.93867144,0.00022739,2]
[328954653,1718027471328,-1288.07,0.00022739,2]
[328954654,1718027471341,-803.58,0.00022739,2]
[328954655,1718027471351,-576.15,0.00022739,2]
[328954656,1718027471361,-809.62,0.00022739,2]
[328954657,1718027471372,-1839.43,0.00022739,2]
[328954658,1718027471382,-663.34,0.00022739,2]
[328954659,1718027471392,-1812.95,0.00022739,2]
[328954660,1718027471402,-546.88,0.00022739,2]
[328954661,1718027471412,-1110.76,0.00022739,2]
[328954662,1718027471422,-372.74,0.00022739,2]
[328954663,1718027471434,-2940.84,0.00022739,2]
[328954664,1718027471445,-4098.29,0.00022739,2]
[328954665,1718027471455,-2176.93,0.00022739,2]
[328954666,1718027471469,-2014.2,0.00022739,2]
[328954667,1718027471480,-653.4,0.00022739,2]
[328954668,1718027471490,-3732.58,0.00022739,2]
[328954669,1718027471500,-255.816141,0.00022849,2]
[328954670,1718027471510,-847.123073,0.00022849,2]
[328954671,1718027471521,-974.075594,0.00022849,2]
[328954672,1718027471531,-166.666666,0.00022944,2]
[328954673,1718027471542,-587.0,0.0002298,2]
[328954674,1718027471553,-2123.04619398,0.00023,2]
[328954675,1718027471563,-272.07251731,0.00023,2]
[328954676,1718027471573,-155.01395126,0.00023,2]
[328954677,1718027471584,-11322.35424371,0.00023,2]
[328954678,1718027471594,-366.29077457,0.00023,2]
[328954679,1718027471604,-500.0,0.00023013,2]
[328954680,1718027471614,-852.44,0.00023013,2]
[328954681,1718027471625,-816.0,0.00023013,2]
[328954682,1718027471635,-697.87,0.00023013,2]
[328954683,1718027471645,-500.0,0.00023013,2]
[328954684,1718027471655,-749.15,0.00023013,2]
[328954685,1718027471665,-500.0,0.00023013,2]
[328954686,1718027471675,-574.83,0.00023013,2]
[328954687,1718027471686,-760.86,0.00023013,2]
[328954688,1718027471696,-500.0,0.00023013,2]
[328954689,1718027471706,-775.87,0.00023013,2]
[328954690,1718027471715,-793.41,0.00023013,2]
[328954691,1718027471725,-1146.57,0.00023013,2]
[328954692,1718027471735,-500.0,0.00023013,2]
[328954693,1718027471745,-500.0,0.00023013,2]
[328954694,1718027471755,-645.4,0.00023013,2]
[328954695,1718027471766,-4240.31,0.00023013,2]
[328954696,1718027471777,-638.56,0.00023013,2]
[328954697,1718027471787,-2476.18,0.00023013,2]
[328954698,1718027471797,-500.0,0.00023013,2]
[328954699,1718027471807,-1036.24,0.00023013,2]
[328954700,1718027471817,-1207.66,0.00023013,2]
[328954701,1718027471828,-500.0,0.00023013,2]
[328954702,1718027471839,-500.0,0.00023013,2]
[328954703,1718027471849,-607.44,0.00023013,2]
[328954704,1718027471859,-656.09,0.00023013,2]
[328954705,1718027471870,-1288.07,0.00023013,2]
[328954706,1718027471880,-803.58,0.00023013,2]
[328954707,1718027471890,-809.62,0.00023013,2]
[328954708,1718027471900,-1839.43,0.00023013,2]
[328954709,1718027471910,-663.34,0.00023013,2]
[328954710,1718027471920,-1812.95,0.00023013,2]